[Event "ESP-chT Honor Division 2022"]
[Site "Linares"]
[Date "2022.09.20"]
[Round "4.7"]
[White "Gines Esteo, Pedro Antonio"]
[Black "Van Foreest, Jorden"]
[Result "1-0"]
[ECO "D43"]
[WhiteElo "2505"]
[BlackElo "2691"]
[Annotator "TA"]
[PlyCount "113"]
[EventDate "2022.09.17"]
[EventType "team-tourn"]
[EventCountry "ESP"]
[SourceTitle "playchess.com"]
[Source "ChessBase"]
[SourceQuality "1"]
[TimeControl "5400+30"]

{[%evp 13,113,18,29,4,21,13,33,15,27,23,20,11,5,0,0,0,0,-50,-14,-17,-15,-27,-27,-27,-19,-37,-33,-35,24,2,21,0,0,0,0,0,0,-90,0,0,0,0,0,0,0,0,0,0,0,0,0,0,0,0,0,0,0,0,0,0,21,21,138,139,138,138,138,138,138,127,135,129,138,138,320,267,258,258,1119,941,5104,5104,796,2184,841,485,29958,29961,29965,29965,29966,29965,29966,29967,29968,29969,29969,29970,29968,29969,29966,5065]} 1. d4 {[%emt 0:00:12]} d5 {[%emt 0:00:40]} 2. c4 {[%emt 0:00:23]} c6 {[%emt 0:00:28]} 3. Nf3 {[%emt 0:00:34]} Nf6 {[%emt 0:00:08]} 4. Nc3 {[%emt 0:00:35]} e6 {[%emt 0:00:29]} 5. Bg5 {[%emt 0:01:40]} h6 {[%emt 0:01:16]} 6. Bxf6 {[%emt 0:00:17]} Qxf6 {[%emt 0:00:07]} 7. e3 {[%emt 0:00:04]} g6 {[%emt 0:00:09] BESTDEEP} 8. Be2 {[%emt 0:01:59] CPLX 2.2 25 (Bf1-d3) (=25). D43: Semi-Slav: 5 Bg5 h6.} Bg7 {[%emt 0:00:08] CPLX 2.3 17 (Nb8-d7) (=9)} 9. O-O {[%emt 0:00:24] CPLX 2.3} O-O {[%emt 0:00:07] BESTDEEP} 10. e4 {[%emt 0:03:41] CPLX 2.3 18 (Nf3-e5) (=14). White is slightly better.} dxe4 {[%emt 0:04:59] CPLX 2.5 12 (Rf8-d8) (=7)} 11. Nxe4 {[%emt 0:00:06] RECAPT} Qf4 {[%emt 0:00:07] CPLX 2.6} 12. Qc2 {[%emt 0:02:29] CPLX 2.9} c5 {[%emt 0:00:45] BESTDEEP} 13. Nxc5 {[%emt 0:10:29][%cal Be4c5,Bc5b3,Bb3c1,Bc1a2,Ba2c3,Bc3a4][%mdl 32] CPLX 3.0 5 (d4xc5) (=8)} Nc6 {[%emt 0:00:58] [#] CPLX 2.8} 14. Nb3 $146 {[%emt 0:21:19] CPLX 2.9} ({Predecessor:} 14. d5 Nd4 15. Nxd4 Qxd4 16. Nb3 Qxb2 17. Qxb2 Bxb2 18. Rab1 Ba3 19. Bf3 exd5 20. Bxd5 {1-0 (53) Edouard,R (2649)-Keymer,V (2558) Biel 2020}) 14... a5 {[%emt 0:03:50][%cal Ba7a5,Ba5a4][%mdl 32] BESTDEEP} 15. a3 {[%emt 0:06:09] CPLX 2.8 50 (a2-a4) (=12)} (15. a4 $11) 15... b6 {[%emt 0:11:29][%mdl 1024] Black has compensation. MISS-a5-a4 36 (a5-a4) (=7)} (15... a4 $5 {[%cal Ra4b3]} 16. Nc5 Nxd4 17. Nxd4 Bxd4 $15) 16. g3 {[%emt 0:24:01] CPLX 2.8 3 (a3-a4) (=11)} Qf6 {[%emt 0:03:21] CPLX 2.9 2 (Qf4-d6) (=7)} 17. Rad1 {[%emt 0:00:27] CPLX 2.5 12 (c4-c5) (=11)} a4 {[%emt 0:01:07] CPLX 2.5} 18. Nc1 {[%emt 0:02:35] CPLX 2.7} Rd8 {[%emt 0:03:13] CPLX 2.5 8 (Bc8-b7) (=6)} 19. Na2 {[%emt 0:00:35] CPLX 2.5 18 (Be2-d3) (=11)} Bb7 {[%emt 0:03:00] BESTDEEP} 20. Nc3 {[%emt 0:00:33] BESTDEEP} Rxd4 {[%emt 0:04:04] RELBLUND 59 (Nc6-a5) (=10)} ({Black should try} 20... Na5 $15 21. Qd3 Nxc4 $1 22. Qxc4 Bxf3) 21. Nxa4 {[%emt 0:05:30] CPLX 2.9 22 (Nf3xd4) (=11)} Rad8 {[%emt 0:09:25] MISS-Rd4xd1 19 (Rd4xd1) (=10)} 22. b4 {[%emt 0:03:22] CPLX 3.0 21 (Rd1xd4) (=12)} Nxb4 $1 {[%emt 0:03:33] DEEPSTRONG} 23. axb4 {[%emt 0:00:05] RECAPT} Bxf3 {[%emt 0:00:04] EASY} 24. Nxb6 {[%emt 0:04:01] BESTDEEP} Be4 {[%emt 0:00:28] A strong pair of Bishops. CPLX 3.8} 25. Qb3 {[%emt 0:02:50] RELBLUND 90 (Qc2-c1) (=15)} (25. Qc1 $1 $11 {keeps the balance.}) 25... Bb7 {[%emt 0:04:58] MISSDEEP-Qf6-f5 90 (Qf6-f5) (=13)} (25... Rd2 $6 26. Qe3 Rxd1 27. Rxd1 Rxd1+ 28. Bxd1 $11) ({Black should play} 25... Qf5 $1 $17 {aiming for ...Bc2.} 26. Qe3 Qh3 27. Qxe4 Rxe4 28. Rxd8+ Kh7) 26. Na4 $11 {[%emt 0:03:48] BESTDEEP} Qf5 {[%emt 0:01:34] BESTDEEP} (26... Rd2 27. Nc5 Ba8 28. Rxd2 Rxd2 29. Qa3 Rxe2 30. Qxa8+ Kh7 31. Nd7 $14) 27. Nc5 {[%emt 0:00:19] Against Qe4. EASY} Ba8 {[%emt 0:00:22] BESTDEEP} 28. Qe3 {[%emt 0:01:46] BESTDEEP} h5 {[%emt 0:11:33] BESTDEEP} (28... Qh3 29. f3 $16) 29. Rd3 {[%emt 0:00:39] CPLX 4.4 0 (Rf1-e1) (=12)} h4 {[%emt 0:02:28] BESTDEEP} (29... Qh3 30. Bf3 $14) 30. Rfd1 {[%emt 0:01:16][%cal Rd3d4] BESTDEEP} hxg3 {[%emt 0:01:29] EASY} ({Much less strong is} 30... Qh3 31. Bf3 $16) 31. hxg3 {[%emt 0:00:34][%cal Rd3d4] Really sharp! RECAPT} e5 {[%emt 0:08:31] BESTDEEP} ({Don't play} 31... Qh3 32. Bf3 $16) 32. Rxd4 {[%emt 0:02:01] CPLX 4.4 0 (f2-f3) (=11)} exd4 {[%emt 0:00:05] RECAPT} 33. Qd3 {[%emt 0:00:17] Hoping for Qxf5. CPLX 4.3 0 (Qe3-f4) (=10)} Qf6 {[%emt 0:00:06] CPLX 4.3} (33... Qh3 $2 34. Bf3 $18) 34. Ne4 $36 {[%emt 0:01:20][%mdl 2048] White is more active. CPLX 3.9} Qe7 {[%emt 0:00:50][%csl LRb4,LRe4] CPLX 3.7} 35. Nc5 {[%emt 0:01:08] EASY} Rb8 {[%emt 0:00:19] CPLX 3.3 0 (Qe7-f6) (=8)} 36. Rb1 {[%emt 0:00:19] CPLX 3.3 0 (Rd1-a1) (=9)} Qe8 {[%emt 0:03:34] CPLX 3.3 21 (Qe7-f6) (=9)} 37. Bf3 {[%emt 0:00:22] Inhibits Qc6. Black must now prevent b5. EASY} Bxf3 {[%emt 0:00:19] MISS-Rb8xb4 117 (Rb8xb4) (=12)} (37... Rxb4 $1 $11 38. Rxb4 Qe1+ 39. Kg2 Qxb4 40. Bxa8 Qxc5) 38. Qxf3 $16 {[%emt 0:00:05] Strongly threatening b5. RECAPT} Rxb4 {[%emt 0:00:03] EASY} 39. Rxb4 {[%emt 0:00:52] And now Rb7 would win. RECAPT} Qe1+ {[%emt 0:00:05] EASY} 40. Kg2 {[%emt 0:00:02] Rb8+ would kill now. CPLX 3.7} Qxb4 {[%emt 0:00:05][%mdl 4096] Endgame KQB-KQN. EASY} 41. Qa8+ $1 {[%emt 0:00:12] DEEPSTRONG} Kh7 {[%emt 0:00:50] DEEPSTRONG} 42. Qd5 {[%emt 0:00:09] EASY} Qa5 {[%emt 0:00:59] [#] CPLX 2.1 9 (Kh7-g8) (=11)} 43. Nb7 $1 {[%emt 0:01:32] White is more active. DEEPSTRONG} Qc3 {[%emt 0:09:45] [#] A mistake that costs the game. MISSDEEP-Qa5-c7 182 (Qa5-c7) (=15)} (43... Qc7 $16 44. Nd6 f5) 44. Nd8 $1 $18 {[%emt 0:00:52] DEEPSTRONG=>BLUNDERREACT} ({Not} 44. Qxf7 d3 45. Nc5 d2 $11) 44... d3 {[%emt 0:00:09] DEEPSTRONG} 45. Nxf7 {[%emt 0:00:19] CPLX 2.2} Bf6 {[%emt 0:02:18] BEVAL 400 (Qc3-d4) (=25)} (45... Qd4 46. Ng5+ Kh6) 46. Nd6 {[%emt 0:00:08] EVAL} Qd4 {[%emt 0:00:01] BEVAL 400 (Bf6-e7) (=34)} 47. Qxd4 {[%emt 0:01:03] BEVAL} Bxd4 {[%emt 0:00:03] KB-KN. EVAL} 48. Ne4 {[%emt 0:00:06] f4 is the strong threat. BEVAL} Kg7 {[%emt 0:00:34] EVAL 0 (g6-g5) (=33)} 49. f4 {[%emt 0:00:09] Threatening mate with Kf3. CPLX 2.1 356 (Kg2-f1) (=15)} Kf7 {[%emt 0:00:24] MISSDEEP-Bd4-b6 400 (Bd4-b6) (=41)} (49... Bb6 $18 50. Kf3 Kf7) 50. Kf3 {[%emt 0:00:03] CPLX 2.1=>BLUNDERREACT. White mates.} Ke6 {[%emt 0:00:04] RELBLUND 4 (Bd4-b6) (=40)} 51. Nd2 {[%emt 0:01:15] BESTDEEP} Bg1 {[%emt 0:02:26] RELBLUND 1 (Bd4-b6) (=39)} 52. Ke4 {[%emt 0:00:34] CPLX 2.1 1 (g3-g4) (=14)} Bh2 {[%emt 0:03:36] RELBLUND 1 (Bg1-c5) (=39)} 53. g4 {[%emt 0:00:01] CPLX 2.1} Kd6 {[%emt 0:00:05] RELBLUND 1 (Ke6-d7) (=38)} 54. f5 {[%emt 0:00:26] EASY} gxf5+ {[%emt 0:00:10] RELBLUND 0 (Bh2-g3) (=37)} 55. Kxf5 {[%emt 0:00:17] RECAPT} Bg1 {[%emt 0:00:22] RELBLUND 0 (Bh2-g3) (=36)} 56. Ke4 {[%emt 0:00:13] CPLX 2.1} Bb6 {[%emt 0:00:34] RELBLUND 0 (Kd6-e6) (=36)} 57. Nf3 {[%emt 0:00:32] Weighted Error Value: White=0.13 (very precise) /Black=0.20 (precise)} 1-0

[Event "ESP-chT Honor Division 2022"]
[Site "Linares"]
[Date "2022.09.20"]
[Round "4.8"]
[White "Nihal Sarin"]
[Black "Martinez Fernandez, Adrian"]
[Result "1-0"]
[ECO "D02"]
[WhiteElo "2677"]
[BlackElo "2338"]
[Annotator "TA"]
[PlyCount "91"]
[EventDate "2022.09.17"]
[EventType "team-tourn"]
[EventCountry "ESP"]
[SourceTitle "playchess.com"]
[Source "ChessBase"]
[SourceQuality "1"]
[TimeControl "5400+30"]

{[%evp 9,91,0,8,0,0,0,0,-13,2,-9,-4,0,0,0,0,0,0,0,12,0,16,18,14,0,20,25,29,15,38,37,36,33,64,41,56,68,234,231,237,243,229,235,338,335,529,537,531,477,523,540,551,532,558,539,566,530,596,612,625,518,554,555,558,556,552,547,514,514,560,549,665,646,631,608,783,798,1154,1175,2288,2205,29991,29973,29966,5591]} 1. d4 d5 2. Nf3 Nf6 3. c3 e6 4. Bf4 Bd6 5. e3 O-O {CPLX 2.3 8 (c7-c5) (=8)} 6. Nbd2 {CPLX 2.1 8 (Bf1-d3) (=8). D02: 1 d4 d5 2 Nf3 sidelines, including 2...Nf6 3 g3 and 2...Nf6 3 Bf4.} c5 {BESTDEEP} 7. Bd3 {BESTDEEP} Bxf4 {BESTDEEP} 8. exf4 {RECAPT. The position is equal.} b6 {CPLX 2.2 15 (Qd8-b6) (=6)} 9. h4 $5 {[%mdl 4] CPLX 2.2 11 (Qd1-a4) (=5) Leaves trodden paths.} a5 {CPLX 2.3 5 (Bc8-a6) (=6)} 10. h5 {CPLX 2.3 0 (Ra1-c1) (=4)} Ba6 {CPLX 2.5 0 (h7-h6) (=5)} 11. Bxa6 {CPLX 2.9} Nxa6 {RECAPT} 12. h6 {CPLX 2.1} g6 {CPLX 2.5} 13. Qe2 {CPLX 2.2 0 (g2-g3) (=2)} cxd4 {CPLX 2.4 12 (Na6-c7) (=4)} 14. Nxd4 {[#] RECAPT} Qd6 $146 {CPLX 2.5 16 (Na6-c5) (=6)} ({Predecessor:} 14... Nc5 15. N2f3 Nfe4 16. Ne5 Qf6 17. g3 Rfe8 18. Ng4 Qe7 19. f3 Nxg3 20. Nc6 Qc7 {0-1 (56) Hakobyan,A (2601)-Smirnov,P (2544) Chess.com INT 2022}) 15. g3 {BESTDEEP} Nc5 {[%cal Ba6c5,Bc5b7,Bb7a5][%mdl 32] EASY} 16. O-O {CPLX 2.6 14 (Ra1-d1) (=3)} Rfc8 {CPLX 2.5 20 (Rf8-e8) (=6)} 17. Kg2 $1 {CPLX 2.5} a4 {BESTDEEP} 18. a3 {CPLX 2.7 14 (Rf1-h1) (=4)} Nb7 {CPLX 2.8 23 (b6-b5) (=7)} 19. Rad1 {CPLX 2.7 1 (Nd2-f3) (=3)} Na5 {BESTDEEP} 20. Rfe1 {CPLX 2.8 3 (Nd2-f3) (=3)} Re8 {CPLX 2.8 31 (Qd6-f8) (=8)} 21. N2f3 {CPLX 2.8 23 (Nd4-b5) (=5)} Nc4 {CPLX 2.7 15 (Qd6-f8) (=9)} 22. Ne5 {CPLX 2.9} Rac8 $2 {[#] This move loses the game for Black. RELBLUND 166 (Re8-c8) (=17)} ({Black should try} 22... Rec8 $14) 23. Nb5 $1 $18 {DEEPSTRONG=>BLUNDERREACT} Qf8 {CPLX 3.9} 24. Nxc4 {CPLX 3.2} Rxc4 {[#] RECAPT} 25. Nd6 {Prevents Re4. BESTDEEP} Qxd6 {CPLX 3.5 103 (Rc4-c5) (=20)} (25... Rc5 $142) 26. Qxc4 $1 {[%mdl 64] Pin. EASY} Ng4 {[#] CPLX 3.5 194 (Re8-d8) (=28)} (26... Rd8 $142) 27. Qxd5 $3 {[%mdl 512] BESTDEEP} Qf8 {BESTDEEP} 28. Qc6 {CPLX 3.8 54 (Qd5-b5) (=6)} Nxh6 {CPLX 3.8 46 (Re8-b8) (=27)} 29. Qxa4 {CPLX 2.9} Nf5 {CPLX 2.8 11 (Re8-a8) (=27)} 30. Rd3 {BESTDEEP} h5 {CPLX 2.9 26 (Re8-c8) (=27)} 31. Red1 {BESTDEEP} Kh7 {CPLX 2.9 27 (Kg8-g7) (=27)} 32. Qe4 {CPLX 3.0 36 (Qa4-b5) (=6)} Nh6 {CPLX 3.0 66 (Qf8-c5) (=28)} 33. Rd7 {CPLX 3.1} Qc5 {CPLX 3.3 13 (h5-h4) (=27)} 34. Rd8 Ng4 35. Qf3 Re7 36. R8d7 Rxd7 37. Rxd7 {[%mdl 4096] Endgame KQR-KQN} Kg7 38. Rd2 b5 39. Qe4 Kh7 40. Qd4 {Against Nf6} Qf5 41. f3 Nh6 42. Qe5 Qb1 43. Rd8 {[%csl Ge5][%cal Rd8h8]} Ng8 44. Rf8 f6 45. Qxe6 Qc2+ 46. Kh3 {Weighted Error Value: White=0.07 (flawless) /Black=0.35} 1-0

[Event "ESP-chT Honor Division 2022"]
[Site "Linares"]
[Date "2022.09.20"]
[Round "4.9"]
[White "Masague Artero, Guerau"]
[Black "Hakobyan, Aram"]
[Result "1/2-1/2"]
[ECO "E35"]
[WhiteElo "2308"]
[BlackElo "2611"]
[Annotator "TA"]
[PlyCount "89"]
[EventDate "2022.09.17"]
[EventType "team-tourn"]
[EventCountry "ESP"]
[SourceTitle "playchess.com"]
[Source "ChessBase"]
[SourceQuality "1"]
[TimeControl "5400+30"]

{[%evp 21,89,0,12,0,11,15,15,12,26,15,17,12,35,44,34,56,39,31,45,59,43,29,44,40,44,40,23,18,17,0,12,0,0,0,0,0,0,0,0,0,0,0,0,0,0,0,0,0,0,0,0,0,2,0,0,0,0,0,18,10,15,0,0,0,0,2,77,77,257,252]} 1. d4 {[%emt 0:00:04]} Nf6 {[%emt 0:02:14]} 2. c4 {[%emt 0:00:06]} e6 {[%emt 0:00:40]} 3. Nc3 {[%emt 0:02:19]} Bb4 {[%emt 0:00:03]} 4. Qc2 {[%emt 0:01:09]} d5 {[%emt 0:01:02]} 5. cxd5 {[%emt 0:00:25]} exd5 {[%emt 0:00:18]} 6. Bg5 {[%emt 0:00:14]} h6 {[%emt 0:00:59]} 7. Bxf6 {[%emt 0:03:43]} Qxf6 {[%emt 0:00:04]} 8. a3 {[%emt 0:00:06]} Bxc3+ {[%emt 0:02:02]} 9. Qxc3 {[%emt 0:00:10]} O-O {[%emt 0:00:42]} 10. e3 {[%emt 0:00:37]} c6 {[%emt 0:00:14]} 11. Nf3 {[%emt 0:01:57] 11.Ne2 deserves study.} Re8 {[%emt 0:00:02] CPLX 2.0 12 (Bc8-f5) (=12)} 12. Bd3 {[%emt 0:02:48] CPLX 2.1 12 (Bf1-e2) (=12). E35: Nimzo-Indian: Classical: 4...d5 5 cxd5 exd5.} Bh3 {[%emt 0:03:52] CPLX 2.5 11 (Bc8-f5) (=12)} 13. O-O {[%emt 0:02:24] EASY} Nd7 {[%emt 0:00:13] [#] CPLX 3.0 0 (Bh3-f5) (=8)} 14. Rfc1 $146 {[%emt 0:01:50] CPLX 3.0 3 (Qc3-b3) (=5). The position is equal.} ({Predecessor:} 14. Kh1 Bg4 15. Nd2 Nf8 16. b4 Ng6 17. Bxg6 Qxg6 18. Nb3 h5 19. Nc5 Re7 20. Nd3 {0-1 (32) Edes,Z (2058)-Szabo,B (2375) Miskolc 2010}) 14... Bg4 {[%emt 0:01:13] CPLX 3.0 14 (Bh3-f5) (=9)} 15. Nd2 {[%emt 0:01:37] CPLX 2.6 11 (Nf3-e1) (=7)} Qg5 {[%emt 0:03:58] CPLX 2.8 2 (Bg4-f5) (=8)} 16. b4 {[%emt 0:03:18] CPLX 2.5 5 (a3-a4) (=6)} a6 {[%emt 0:01:25] CPLX 2.5 23 (Ra8-c8) (=10)} 17. a4 {[%emt 0:01:19] BESTDEEP} Re6 {[%emt 0:00:07] BESTDEEP} 18. b5 {[%emt 0:11:58][%cal Rb5c6] BESTDEEP} Bh3 {[%emt 0:05:30][%csl Gh3][%cal Rg5g2] [#] CPLX 2.8} 19. g3 {[%emt 0:01:03][%cal Rb5c6] CPLX 4.4} axb5 {[%emt 0:00:51] CPLX 3.5 14 (h6-h5) (=8)} 20. axb5 {[%emt 0:00:12] RECAPT} Rae8 {[%emt 0:00:03] CPLX 4.8 0 (Ra8-b8) (=8)} 21. bxc6 {[%emt 0:05:39] CPLX 3.4 14 (Nd2-f3) (=5)} bxc6 {[%emt 0:00:17] RECAPT 15 (Re6xc6) (=8)} 22. Bf1 {[%emt 0:01:39] CPLX 3.3 4 (Nd2-f3) (=4)} Bxf1 {[%emt 0:00:43] CPLX 3.0 4 (Bh3-f5) (=8)} 23. Rxf1 {[%emt 0:00:13] RECAPT} Qf5 {[%emt 0:06:46] CPLX 2.2} 24. Ra6 {[%emt 0:03:12] CPLX 2.2 5 (Ra1-a2) (=4)} Rc8 {[%emt 0:00:52] CPLX 2.3} 25. Qa5 {[%emt 0:06:50] CPLX 2.2 17 (Ra6-a7) (=5)} Nf6 {[%emt 0:15:54] CPLX 2.2 12 (g7-g6) (=7)} 26. Kg2 {[%emt 0:03:03] CPLX 2.2 12 (Ra6-a8) (=6)} h5 {[%emt 0:02:34][%cal Oh5h4] CPLX 2.8 0 (Qf5-d3) (=7)} 27. Ra8 {[%emt 0:01:12] CPLX 3.1 0 (h2-h4) (=5)} Rxa8 {[%emt 0:02:26] CPLX 3.8} 28. Qxa8+ {[%emt 0:00:08] RECAPT} Re8 {[%emt 0:12:41][%cal Be6e8,Be8c8,Bc8c2][%mdl 32] BESTDEEP} 29. Qxc6 {[%emt 0:01:10] EASY} Rc8 {[%emt 0:00:28] CPLX 3.0} 30. Qd6 {[%emt 0:09:46] CPLX 3.3 0 (Qc6-b5) (=4)} Rc2 {[%emt 0:03:47] BESTDEEP} ({Resist} 30... Ne4 31. Nxe4 Qxe4+ 32. Kg1 $16) 31. Qb8+ {[%emt 0:08:28] CPLX 5.0 0 (Qd6-e5) (=4)} Kh7 {[%emt 0:00:42] EASY} 32. Qe5 {[%emt 0:00:09] CPLX 3.9 0 (Qb8-b1) (=4)} Qxe5 {[%emt 0:03:33] BESTDEEP} 33. dxe5 $11 {[%emt 0:00:05][%mdl 4096] Endgame KRN-KRN. RECAPT} Ng4 {[%emt 0:00:28] EASY} 34. Rd1 {[%emt 0:00:35] CPLX 2.1} Nxe5 {[%emt 0:00:08] BESTDEEP} 35. Nf1 {[%emt 0:01:09] CPLX 2.0 0 (Nd2-f3) (=3)} Ng4 {[%emt 0:01:07] CPLX 2.0 0 (Rc2-c5) (=4)} 36. Rd2 {[%emt 0:00:10] CPLX 2.0} Rc5 {[%emt 0:00:06] CPLX 2.0 2 (Rc2xd2) (=4)} 37. Rd4 {[%emt 0:00:51] CPLX 2.0 2 (Rd2-a2) (=3)} Kg6 {[%emt 0:00:26] CPLX 2.0 0 (Rc5-c2) (=4)} 38. h3 {[%emt 0:01:10] CPLX 2.0 0 (Nf1-d2) (=3)} Nf6 {[%emt 0:00:02] CPLX 2.0} 39. Nd2 {[%emt 0:00:58] CPLX 2.0 0 (Rd4-d2) (=3)} Kf5 {[%emt 0:00:44] CPLX 2.0 18 (Rc5-c2) (=4)} 40. Rf4+ {[%emt 0:00:44] CPLX 2.0 8 (Nd2-f3) (=3)} Ke6 {[%emt 0:00:08] CPLX 2.0} 41. Rd4 {[%emt 0:00:13] CPLX 2.0 15 (Rf4-a4) (=4)} Rc2 {[%emt 0:00:33] CPLX 2.0} 42. Nf3 {[%emt 0:05:01] CPLX 2.0} Ra2 {[%emt 0:02:15] BESTDEEP} (42... Ne4 $2 {[#]} 43. Rxe4+ $1 {[%mdl 512]} dxe4 44. Nd4+ Ke7 45. Nxc2 $18) 43. Ng5+ {[%emt 0:01:18] CPLX 2.0 0 (Rd4-d2) (=3)} Kf5 {[%emt 0:03:48] MISS-Ke6-e7 75 (Ke6-e7) (=6)} (43... Ke7 $11 {remains equal.}) 44. Nxf7 $16 {[%emt 0:07:45] EASY} Ne4 $2 {[%emt 0:00:13] RELBLUND 180 (g7-g5) (=11)} (44... g5 $16) 45. Rxd5+ {[%emt 0:00:26][%mdl 32768] Weighted Error Value: White=0.04 (flawless) /Black=0.14 (very precise) . An unexpected result.} 1/2-1/2

[Event "ESP-chT Honor Division 2022"]
[Site "Linares"]
[Date "2022.09.20"]
[Round "4.10"]
[White "Arizmendi Martinez, Julen Luis"]
[Black "Jimenez Ruano, Adrian"]
[Result "0-1"]
[ECO "B92"]
[WhiteElo "2488"]
[BlackElo "2264"]
[Annotator "TA"]
[PlyCount "102"]
[EventDate "2022.09.17"]
[EventType "team-tourn"]
[EventCountry "ESP"]
[SourceTitle "playchess.com"]
[Source "ChessBase"]
[SourceQuality "1"]
[TimeControl "5400+30"]

{[%evp 16,102,18,15,45,29,26,35,26,39,28,29,39,35,30,33,29,33,35,36,49,48,91,90,110,115,110,96,167,167,164,128,151,123,164,154,156,156,156,156,162,126,176,180,214,202,216,212,210,208,207,175,185,183,177,187,306,220,239,194,200,181,186,180,324,319,313,292,330,242,232,252,233,247,239,227,450,439,622,610,620,613,585,564,518,-89,-89,-29998,-29999]} 1. e4 {[%emt 0:01:24]} c5 {[%emt 0:00:05]} 2. Nf3 {[%emt 0:06:36]} d6 {[%emt 0:00:05]} 3. d4 {[%emt 0:07:45]} cxd4 {[%emt 0:00:10]} 4. Nxd4 {[%emt 0:00:11]} Nf6 {[%emt 0:00:05]} 5. Nc3 {[%emt 0:00:12]} a6 {[%emt 0:00:04]} 6. Be2 {[%emt 0:08:34]} e5 {[%emt 0:00:06]} 7. Nb3 {[%emt 0:00:54]} Be7 {[%emt 0:00:09]} 8. O-O {[%emt 0:03:26]} O-O {[%emt 0:00:05]} 9. Re1 {[%emt 0:05:31] CPLX 2.2 3 (Bc1-e3) (=3)} b5 {[%emt 0:04:26] CPLX 2.2 30 (Bc8-e6) (=30). B92: Sicilian Najdorf: 6 Be2.} 10. a4 {[%emt 0:02:30] CPLX 2.3} b4 {[%emt 0:00:07] EASY} 11. Nd5 {[%emt 0:00:16] EASY} Nxd5 {[%emt 0:00:16] BESTDEEP. White is slightly better.} 12. Qxd5 {[%emt 0:00:51] RECAPT} Ra7 {[%emt 0:00:05] EASY} 13. Be3 {[%emt 0:01:50] CPLX 2.6 0 (Qd5-a5) (=1)} Be6 {[%emt 0:00:07] CPLX 2.9} 14. Qd2 $36 {[%emt 0:01:59][%mdl 2048] White fights for an advantage. CPLX 3.1} Rb7 {[%emt 0:00:07] CPLX 2.7} 15. a5 {[%emt 0:09:29] [#] CPLX 2.4 0 (Re1-d1) (=0)} Qc7 $146 {[%emt 0:00:16] CPLX 2.4 0 (Qd8-c8) (=4)} ({Predecessor:} 15... Qd7 16. Nc1 Rc8 17. b3 Qc6 18. Nd3 Qxc2 19. Nxb4 Qxe4 20. Ra4 Qf5 21. Nxa6 Rc2 {0-1 (54) Arribas Lopez,A (2483)-Smirnov,A (2527) Chess.com INT 2018}) 16. Bd3 {[%emt 0:08:34] CPLX 2.4 0 (Nb3-c1) (=0)} Qc6 {[%emt 0:01:58] BESTDEEP} 17. Qe2 {[%emt 0:05:32] CPLX 2.3} Rc8 {[%emt 0:01:13] CPLX 2.4 13 (d6-d5) (=5)} 18. Nd2 {[%emt 0:02:07] CPLX 2.4} Bf6 {[%emt 0:07:37] CPLX 2.4 43 (d6-d5) (=9)} 19. b3 {[%emt 0:12:04] CPLX 2.4 1 (f2-f3) (=0)} Bd8 {[%emt 0:03:59] CPLX 2.3 20 (d6-d5) (=10)} 20. Nc4 {[%emt 0:07:56] BESTDEEP} Nd7 {[%emt 0:02:35] Against Nb6. BESTDEEP} 21. Nb6 {[%emt 0:02:44] Prevents Ra8. BESTDEEP} Nxb6 {[%emt 0:21:28] MISSDEEP-Bd8xb6 71 (Bd8xb6) (=14)} (21... Bxb6 $16 {is a better defense.} 22. axb6 Rbb8) 22. axb6 $18 {[%emt 0:00:08] RECAPT} Rxb6 {[%emt 0:02:36][%cal Oa6a5] RECAPT 0 (Rc8-b8) (=13)} 23. Bxb6 {[%emt 0:03:42] RECAPT 36 (Bd3xa6) (=3)} Bxb6 {[%emt 0:00:11] RECAPT} 24. Bxa6 {[%emt 0:00:45] CPLX 3.1 28 (Ra1xa6) (=4)} Rc7 {[%emt 0:01:17] CPLX 3.4 41 (Rc8-f8) (=14)} 25. Qb5 {[%emt 0:06:01] CPLX 3.1 10 (Ra1-a4) (=5)} g6 {[%emt 0:04:45] MISS-Qc6xb5 2 (Qc6xb5) (=13)} 26. Qxc6 {[%emt 0:00:16] BESTDEEP} Rxc6 {[%emt 0:00:01] RECAPT} 27. Bd3 {[%emt 0:00:15] CPLX 2.5} Bd4 {[%emt 0:00:03] CPLX 2.5} 28. Ra6 {[%emt 0:00:34] CPLX 2.7 36 (Ra1-a4) (=6)} Rc3 {[%emt 0:00:23] CPLX 2.9 50 (Rc6xa6) (=14)} (28... Rxa6 $16 29. Bxa6 d5 30. exd5 Bxd5) 29. Rd1 {[%emt 0:01:46] BESTDEEP} (29. Rxd6 Bxb3 30. Rd8+ (30. cxb3 Rxd3 31. Kf1 Rxb3 $11) 30... Kg7 $14) 29... Bg4 {[%emt 0:03:22] CPLX 2.8 34 (Bd4-c5) (=14)} 30. Rb1 {[%emt 0:00:33] CPLX 3.1} Bc5 {[%emt 0:00:41] CPLX 2.9} 31. Kf1 {[%emt 0:00:28] BESTDEEP} Be6 {[%emt 0:00:22] CPLX 2.7 0 (Kg8-g7) (=13)} 32. Ke2 {[%emt 0:00:37] CPLX 2.6} d5 {[%emt 0:00:19] CPLX 2.7 0 (Kg8-g7) (=13)} 33. f3 {[%emt 0:00:43] CPLX 2.9 32 (Rb1-a1) (=6)} dxe4 {[%emt 0:00:09] BESTDEEP} 34. Bxe4 {[%emt 0:00:34] RECAPT} Bd7 {[%emt 0:00:22] CPLX 3.0} 35. Bd3 {[%emt 0:00:23] Against Bb5. BESTDEEP} f5 {[%emt 0:00:20] CPLX 2.8 119 (Bc5-d4) (=16)} (35... Bd4 $142 36. Rba1 Bc6) 36. Kd2 {[%emt 0:00:43] CPLX 2.8 86 (Bd3-c4) (=8)} Kf7 {[%emt 0:03:30] CPLX 3.0 19 (Kg8-g7) (=16)} 37. Re1 {[%emt 0:00:12] CPLX 3.0 45 (Ra6-a8) (=10)} Bd4 {[%emt 0:00:03] CPLX 3.0} 38. Bc4+ {[%emt 0:00:43] CPLX 3.0} Ke7 {[%emt 0:00:41] CPLX 3.0} 39. Ra5 {[%emt 0:00:29] Threatens to win with Rd5. CPLX 3.6 6 (Ra6-a8) (=9)} e4 {[%emt 0:07:34] CPLX 3.3 144 (f5-f4) (=19)} (39... f4 {was worth a try.} 40. Bd3 Be3+ 41. Ke2 Bd4) 40. fxe4 {[%emt 0:00:02][%cal Bf3e4,Be4e5,Be5e6][%mdl 32] EASY} f4 {[%emt 0:00:02] CPLX 3.4} 41. Bd3 {[%emt 0:01:06] CPLX 3.2 21 (Kd2-c1) (=9)} h5 {[%emt 0:02:32] CPLX 3.1 38 (Rc3-c7) (=19)} 42. e5 {[%emt 0:00:19] And now Re4 would win. CPLX 3.1 88 (h2-h3) (=12)} Bc6 {[%emt 0:00:34] BESTDEEP} 43. Re2 {[%emt 0:00:26] BESTDEEP} ({Resist} 43. Bxg6 $6 Bxg2 44. Rd1 (44. Bxh5 f3 $11) 44... Be3+ 45. Ke1 f3 $14) 43... h4 {[%emt 0:01:44] [#] BESTDEEP} 44. h3 $1 {[%cal Bh2h3,Bh3g4][%mdl 32] DEEPSTRONG} ({Inferior is} 44. Bxg6 h3 45. gxh3 f3 $15) 44... g5 {[%emt 0:01:18] CPLX 3.5} 45. e6 {[%emt 0:00:50] BESTDEEP} g4 $2 {[%emt 0:00:19] CPLX 3.8 223 (f4-f3) (=23)} (45... f3 46. gxf3 Bxf3) 46. hxg4 {[%emt 0:00:13] EASY} f3 {[%emt 0:00:06] CPLX 4.0 183 (Bd4-e3) (=27)} (46... Be3+ $142 47. Ke1 Kxe6) 47. gxf3 {[%emt 0:00:19] EASY} Bxf3 {[%emt 0:00:01] RECAPT} 48. Rh2 {[%emt 0:00:22] EASY} Rc6 {[%emt 0:01:51] BESTDEEP} 49. Rxh4 {[%emt 0:01:17] g5 is the strong threat. CPLX 4.0} Rxe6 {[%emt 0:00:01] CPLX 3.8} 50. Ra7+ $2 {[%emt 0:00:47] [#] RELBLUND 400 (c2-c4) (=19)} Kd8 $1 $17 {[%emt 0:03:11][%mdl 1024] ( -> ...Bc3+). Black has strong compensation. Black is more active. DEEPSTRONG=>BLUNDERREACT} 51. Bc4 $2 {[%emt 0:00:16][%mdl 8192] RELBLUND 400 (Ra7-d7) (=28)} (51. Rd7+ $17 Kxd7 52. Bf5) 51... Bc3+ {[%emt 0:00:41] Quite a comeback for Black.  Weighted Error Value: White=0.40/Black=0.30} 0-1